Cogmind - Beta 13 X2 @@@ ROGUE MODE // 2024.01.26 @ 22:03:53 Player: Minty Result: Destroyed by S-27 Virus with Autogun Performance ------------- Evolutions (3) 1500 Regions Visited (6) 1200 Robots Destroyed (122) 610 Value Destroyed (3840) 3840 Prototype IDs (8) 160 Alien Tech Used (0) 0 Bonus (811) 811 TOTAL SCORE: 8121 Bonus ------- High Alert Combat Kills 611 Entered Garrisons 200 Cogmind --------- Core Integrity 0/700 Matter 229/300 Energy 99/100 System Corruption 0% Temperature Cool (0) Movement Core (50) Location -7/Garrison Parts ------- > --- POWER (1) -------- (None) > --- PROPULSION (3) --- (None) > --- UTILITY (6) ------ Terrain Scan Processor > --- WEAPON (3) ------- (None) > --- INVENTORY (5) ---- Heavy Ion Engine Heavy Ion Engine Advanced Heat Sink Heavy Laser Minigun Peak State ------------ > --- POWER ------------ Heavy Ion Engine > --- PROPULSION ------- Armored Wheel Armored Wheel > --- UTILITY ---------- Large Storage Unit Improved Terrain Scanner Terrain Scan Processor Recoil Stabilizer Kinecellerator > --- WEAPON ----------- Lightning Gun Lightning Gun Lightning Gun > --- INVENTORY -------- Heavy Ion Engine Armored Wheel Cryofiber Web Improved Heat Sink Recoil Stabilizer Recoil Stabilizer Kinecellerator Improved Utility Shielding Light Armor Plating Hacking Suite Lightning Gun Minigun High-powered Shotgun High-powered Shotgun High-powered Shotgun [Rating: 36] Favorites ----------- Power Heavy Ion Engine Engine Heavy Ion Engine Propulsion Armored Wheel Leg Aluminum Leg Wheel Armored Wheel Hover Unit Hover Unit Utility Large Storage Unit Device Recoil Stabilizer Storage Large Storage Unit Processor Terrain Scan Processor Hackware Hacking Suite Protection Hardened Light Armor Plating Weapon Minigun Energy Gun Improved EM Shotgun Energy Cannon Advanced Beam Cannon Ballistic Gun Minigun Build | -11 -10 -10 -9 -8 -7 -7 ------- Run | Yrd Mat Min Mat Mat Fac Gar Slots Evolved 6 | . . . 2 2 2 . Power . | . . . . . . . Propulsion 1 | . . . . . 1 . Utility 4 | . . . 1 2 1 . Weapon 1 | . . . 1 . . . Parts Attached 85 | . 15 . 26 31 9 4 Power 6 | . 3 . 2 1 . . Engine 6 | . 3 . 2 1 . . Core . | . . . . . . . Reactor . | . . . . . . . Propulsion 18 | . 4 . 5 7 2 . Treads . | . . . . . . . Leg 10 | . 3 . 2 4 1 . Wheel 7 | . . . 3 3 1 . Hover 1 | . 1 . . . . . Flight . | . . . . . . . Utility 20 | . 3 . 6 8 3 . Device 11 | . 1 . 3 5 2 . Storage 1 | . . . 1 . . . Processor 2 | . 1 . . 1 . . Hackware 1 | . . . . 1 . . Protection 5 | . 1 . 2 1 1 . Artifact . | . . . . . . . Weapon 41 | . 5 . 13 15 4 4 Energy Gun 19 | . 4 . 5 5 4 1 Energy Cannon 1 | . . . 1 . . . Ballistic Gun 21 | . 1 . 7 10 . 3 Ballistic Cannon . | . . . . . . . Launcher . | . . . . . . . Special Weapon . | . . . . . . . Impact Weapon . | . . . . . . . Slashing Weapon . | . . . . . . . Piercing Weapon . | . . . . . . . Special Melee Weapon . | . . . . . . . Unidentified Prototypes 5 | . . . 4 . 1 . Parts Lost 23 | . 3 . 2 5 9 4 Power 2 | . 2 . . . . . Propulsion 6 | . 1 . . 1 4 . Utility 6 | . . . 2 . 4 . Weapon 9 | . . . . 4 1 4 Highest Loss Streak 6 | . 3 . 1 2 6 3 To Critical Strikes 1 | . . . . . . 1 Average Slot Usage (%) 82 | . 98 100 99 98 68 36 Engine 8 | . 13 14 11 9 7 . Leg 6 | . 24 28 4 4 9 . Wheel 9 | . . . 17 13 . . Device 9 | . 5 14 10 17 11 3 Storage 9 | . 14 14 11 9 7 6 Processor 4 | . 5 . . 8 7 7 Protection 5 | . 2 . 10 7 4 . Energy Gun 8 | . 17 28 9 7 11 1 Ballistic Gun 17 | . 10 . 23 18 6 15 Naked Turns . | . . . . . . . Heaviest Build 46 | 11 21 17 41 46 45 34 Greatest Support 30 | 20 20 20 24 24 30 3 Greatest Overweight (x) 11 | . 2 . 2 3 11 11 Average Overweight (x) 1 | . . . . 1 3 7 Largest Inventory Capacity 15 | . 8 8 15 15 15 15 Average Capacity 11 | . 8 8 9 15 15 14 Most Carried 15 | . 8 8 9 15 13 15 Average Carried 10 | . 7 8 7 13 12 13 Final Capacity 15 | 8 8 8 15 15 15 5 Final Carried 13 | 6 8 8 9 12 13 5 Class Distribution -------------------- 33% | Tank 19% | Mutant 19% | Skirmisher 15% | Gunner 5% | Scavenger-Mutant 5% | Scavenger-Tank Dominant Class ---------------- Mutant | -10/Materials Scavenger-Mutant | -10/Mines Tank | -9/Materials Skirmisher | -8/Materials Mutant | -7/Factory Gunner | -7/Garrison Resources | -11 -10 -10 -9 -8 -7 -7 ----------- Run | Yrd Mat Min Mat Mat Fac Gar Matter Collected 2642 | 200 259 . 1068 820 221 74 Remotely 101 | . . . 101 . . . Salvage Created 4540 | . 579 . 1765 1472 467 257 Parts 262 | . 31 . 121 82 15 13 Haulers Intercepted 7 | . 1 . 4 2 . . Recyclers Shooed . | . . . . . . . Parts Field Recycled . | . . . . . . . Retrieved Matter . | . . . . . . . Parts Self-Destructed . | . . . . . . . Prevented . | . . . . . . . Kills | -11 -10 -10 -9 -8 -7 -7 ------- Run | Yrd Mat Min Mat Mat Fac Gar Combat Hostiles Destroyed 90 | . 11 . 30 30 11 8 Guns 87 | . 11 . 30 27 11 8 AOE 1 | . . . . 1 . . Classes Destroyed 12 | . 6 . 5 . . 1 Worker 10 | . 1 . 6 3 . . Builder 4 | . . . 2 2 . . Tunneler 3 | . . . 1 2 . . Hauler 7 | . 1 . 4 2 . . Recycler 2 | . 1 . 1 . . . Operator 2 | . 1 . 1 . . . Watcher 5 | . 1 . 4 . . . Swarmer 17 | . . . 6 3 3 5 Grunt 58 | . 11 . 15 22 8 2 Duelist 2 | . . . 1 1 . . Sentry 12 | . . . 8 4 . . Hunter 1 | . . . . . . 1 Best Kill Streak 14 | . 4 . 14 7 4 5 Combat Bots Only 7 | . 3 . 2 7 4 5 Max Kills in Single Turn 2 | . 2 . 2 2 1 1 Gunslinging 1 | . 1 . . 1 . . Exploded 1 | . . . . 1 . . Melee . | . . . . . . . Uniques/NPCs Destroyed . | . . . . . . . Combat | -11 -10 -10 -9 -8 -7 -7 -------- Run | Yrd Mat Min Mat Mat Fac Gar Hostile Shots Fired 470 | . 70 . 93 143 63 101 Missed 131 | . 22 . 28 34 12 35 Damage Taken 4724 | . 601 . 754 1625 817 927 Core 1158 | . 129 . 54 275 227 473 Absorbed by Shields . | . . . . . . . Redirected to Shielding 110 | . . . . 98 12 . Regen/Repaired (Parts) 2 | . . . . 2 . . Core Remaining (%) 71 | 100 . 48 86 50 . . Volleys Fired 251 | . 44 . 89 74 24 20 Largest 3 | . 2 . 3 3 3 3 Hottest 193 | . 130 . 95 165 193 78 Shots Fired 633 | . 88 . 242 205 65 33 Gun 633 | . 88 . 242 205 65 33 Cannon . | . . . . . . . Launcher . | . . . . . . . Special . | . . . . . . . Kinetic 448 | . 46 . 198 159 15 30 Thermal 73 | . 42 . . . 31 . Explosive . | . . . . . . . Electromagnetic 112 | . . . 44 46 19 3 Robot Hit Streak 20 | . 13 . 10 12 16 20 Robot Miss Streak 11 | . 6 . 7 11 3 5 Penetration Max . | . . . . . . . Secondary Targets 23 | . 1 . 7 8 4 3 Max Gunslinging Chain 1 | . 1 . 1 1 1 1 Shots Hit Robots 410 | . 71 . 134 141 47 17 Core Hits 237 | . 55 . 66 79 22 15 Critical Kills 2 | . . . . 2 . . Critical Parts Destroyed 2 | . 1 . . 1 . . Critical Strikes 7 | . 1 . . 5 1 . Burn 1 | . . . . . 1 . Destroy 4 | . 1 . . 3 . . Corrupt 2 | . . . . 2 . . Melee Attacks . | . . . . . . . Impact . | . . . . . . . Slashing . | . . . . . . . Piercing . | . . . . . . . Sneak Attacks . | . . . . . . . Combat Hostiles . | . . . . . . . Follow-up Attacks . | . . . . . . . Damage Inflicted 7686 | . 826 . 2466 3093 950 351 Guns 7486 | . 816 . 2430 2941 948 351 Cannons . | . . . . . . . Explosions 188 | . . . 36 152 . . Melee . | . . . . . . . Ramming 12 | . 10 . . . 2 . Kinetic 4959 | . 366 . 1837 2204 254 298 Thermal 1104 | . 450 . 36 152 466 . Explosive . | . . . . . . . Electromagnetic 1611 | . . . 593 737 228 53 Impact . | . . . . . . . Slashing . | . . . . . . . Piercing . | . . . . . . . Highest Corruption 1 | . . . 1 . . . Average Corruption 1 | . . . 1 . . . Corruption Purged . | . . . . . . . Corruption Blocked . | . . . . . . . Effects 11 | . . . 11 . . . Message Errors 5 | . . . 5 . . . Matter Fused 3 | . . . 3 . . . Data Loss (minor) 2 | . . . 2 . . . Data Loss (major) 1 | . . . 1 . . . Overload Shots . | . . . . . . . Overflow Damage 32 | . . . 6 26 . . Projectiles . | . . . . . . . Explosions 32 | . . . 6 26 . . Melee . | . . . . . . . Knockbacks . | . . . . . . . Impact . | . . . . . . . Kinetic . | . . . . . . . Secondary . | . . . . . . . Self-Inflicted Damage 39 | . . . . 39 . . Shots 1 | . . . . 1 . . Rammed . | . . . . . . . Targets Rammed 3 | . 1 . . . 2 . Kicked 3 | . 1 . . . 2 . Crushed . | . . . . . . . Highest Temperature 421 | . 384 . 268 332 421 . Average Temperature 87 | . 109 . 79 71 163 . Received Heat Transfer 1962 | . 336 . 231 855 396 144 Effects 5 | . 2 . 1 . 2 . Shutdowns 1 | . 1 . . . . . Energy Bleed 3 | . 1 . 1 . 1 . Damage (minor) 1 | . . . . . 1 . Siege Activations . | . . . . . . . Robots Corrupted 2 | . . . . 2 . . Combat Hostiles 2 | . . . . 2 . . Parts Fried 5 | . . . 3 1 1 . Impact Corruptions . | . . . . . . . Robots Melted . | . . . . . . . Combat Hostiles . | . . . . . . . Parts Melted 2 | . . . . . 2 . Heat Transferred 1759 | . 560 . 50 150 999 . Parts Sabotaged . | . . . . . . . Parts Stolen . | . . . . . . . Parts Stripped . | . . . . . . . Power Chain Reactions 2 | . . . 1 1 . . Missiles Intercepted . | . . . . . . . Alert | -11 -10 -10 -9 -8 -7 -7 ------- Run | Yrd Mat Min Mat Mat Fac Gar Peak Influence 788 | . 318 61 743 788 491 548 Initial 343 | . . 61 23 254 306 343 Average 392 | . 154 61 375 565 411 412 Maximum Alert Level 3 | . 1 . 3 3 2 2 Low Security (%) 19 | . 79 100 21 . . . Level 1 28 | . 20 . 35 18 41 27 Level 2 47 | . . . 39 61 58 72 Level 3 5 | . . . 3 20 . . Level 4 . | . . . . . . . Level 5 . | . . . . . . . High Security . | . . . . . . . Max Security . | . . . . . . . Squads Dispatched 16 | . 2 . 5 6 3 . Investigation 9 | . 1 . 4 4 . . Extermination . | . . . . . . . Reinforcement 4 | . 1 . 1 1 1 . Assault 1 | . . . . 1 . . Garrison 2 | . . . . . 2 . Intercept . | . . . . . . . Searches Triggered . | . . . . . . . Construction Impeded . | . . . . . . . Haulers Reinforced . | . . . . . . . Active Scanning Responses . | . . . . . . . Cargo Convoy Interrupts . | . . . . . . . Stealth | -11 -10 -10 -9 -8 -7 -7 --------- Run | Yrd Mat Min Mat Mat Fac Gar Distress Signals 9 | . . . 5 4 . . Communications Jammed . | . . . . . . . Distress Signals . | . . . . . . . Times Spotted 125 | . 17 . 41 40 12 15 Peak Tracking Total 7 | . 4 . 4 6 4 7 Tactical Retreats 5 | . 2 . . 2 . 1 Traps | -11 -10 -10 -9 -8 -7 -7 ------- Run | Yrd Mat Min Mat Mat Fac Gar Traps Triggered 2 | . . . 1 1 . . Indirectly . | . . . . . . . Trap Hack Attempts . | . . . . . . . Triggered . | . . . . . . . Disarmed . | . . . . . . . Reprogrammed . | . . . . . . . Reused . | . . . . . . . Traps Extracted . | . . . . . . . Installed . | . . . . . . . Triggered . | . . . . . . . Machines | -11 -10 -10 -9 -8 -7 -7 ---------- Run | Yrd Mat Min Mat Mat Fac Gar Machines Disabled 8 | . . . 5 1 1 1 Max in Single Turn 2 | . . . 2 1 1 1 Garrison Relay 1 | . . . . . . 1 Machines Repaired . | . . . . . . . Machines Dismantled . | . . . . . . . Machines Sabotaged . | . . . . . . . Overloaded Fab Kills . | . . . . . . . Hacking | -11 -10 -10 -9 -8 -7 -7 --------- Run | Yrd Mat Min Mat Mat Fac Gar Machines Accessed 16 | . 1 . 8 6 1 . Terminals 10 | . 1 . 5 4 . . Fabricators . | . . . . . . . Repair Stations 3 | . . . 2 1 . . Recycling Units . | . . . . . . . Scanalyzers 2 | . . . 1 1 . . Garrison Access 1 | . . . . . 1 . Total Hacks 48 | . 3 . 21 21 3 . Successful 20 | . 1 . 7 11 1 . Failed 28 | . 2 . 14 10 2 . Catastrophic 5 | . . . 4 1 . . Database Lockouts . | . . . . . . . Manual 23 | . 3 . 11 9 . . Terminals 35 | . 3 . 16 16 . . Fabricators . | . . . . . . . Repair Stations 6 | . . . 4 2 . . Recycling Units . | . . . . . . . Scanalyzers 4 | . . . 1 3 . . Garrison Access 3 | . . . . . 3 . Terminal Hacks 6 | . . . 3 3 . . Prototype ID Bank 2 | . . . 1 1 . . Alert Level 2 | . . . 1 1 . . Unreport Threat 2 | . . . 1 1 . . Fabricator Hacks . | . . . . . . . Repair Station Hacks 3 | . . . 1 2 . . Scan Component 2 | . . . 1 1 . . Repair 1 | . . . . 1 . . Recycling Unit Hacks . | . . . . . . . Scanalyzer 2 | . . . . 2 . . Insert Component 1 | . . . . 1 . . Analyze 1 | . . . . 1 . . Garrison Access Hacks 1 | . . . . . 1 . Unlock Access 1 | . . . . . 1 . Unauthorized Hacks 8 | . 1 . 3 4 . . Terminals 6 | . 1 . 2 3 . . Botnet 6 | . 1 . 2 3 . . Fabricators . | . . . . . . . Repair Stations . | . . . . . . . Recycling Units . | . . . . . . . Scanalyzers 2 | . . . 1 1 . . Extract 2 | . . . 1 1 . . Garrison Access . | . . . . . . . Data Cores Recovered 1 | . . . 1 . . . Used . | . . . . . . . Hacking Detections 13 | . 1 . 7 4 1 . Full Trace Events 8 | . 1 . 4 3 . . Feedback Events 1 | . . . 1 . . . Corruption 1 | . . . 1 . . . Feedback Blocked . | . . . . . . . Robot Schematics Acquired . | . . . . . . . Robots Built . | . . . . . . . Authchips . | . . . . . . . Time . | . . . . . . . Total Robot Build Rating . | . . . . . . . Part Schematics Acquired 6 | . . . 3 3 . . Parts Built . | . . . . . . . Authchips . | . . . . . . . Time . | . . . . . . . Total Part Build Rating . | . . . . . . . Parts Repaired 1 | . . . . 1 . . Time 53 | . . . . 53 . . Parts Recycled . | . . . . . . . Recycled Matter . | . . . . . . . Retrieved Matter . | . . . . . . . Retrieved Components . | . . . . . . . Parts Scanalyzed 1 | . . . . 1 . . Part Schematics Acquired 1 | . . . . 1 . . Parts Damaged . | . . . . . . . Bothacking | -11 -10 -10 -9 -8 -7 -7 ------------ Run | Yrd Mat Min Mat Mat Fac Gar Used RIF Installer . | . . . . . . . Robots Hacked . | . . . . . . . Non-combat . | . . . . . . . Combat . | . . . . . . . Robot Hacks Applied . | . . . . . . . Relay Couplers Released 3 | . . . . . . 3 Machine Destruction 3 | . . . . . . 3 Fabnet Peak Effective % . | . . . . . . . Robots Rewired . | . . . . . . . Allies Hacked . | . . . . . . . Hacks Repelled . | . . . . . . . Allies | -11 -10 -10 -9 -8 -7 -7 -------- Run | Yrd Mat Min Mat Mat Fac Gar Total Allies . | . . . . . . . Largest Group . | . . . . . . . Highest-Rated Group . | . . . . . . . Highest-Rated Ally . | . . . . . . . Total Orders . | . . . . . . . Ally Attacks . | . . . . . . . Total Damage . | . . . . . . . Kills . | . . . . . . . Allies Corrupted . | . . . . . . . Allies Melted . | . . . . . . . Intel | -11 -10 -10 -9 -8 -7 -7 ------- Run | Yrd Mat Min Mat Mat Fac Gar Robot Analysis Total . | . . . . . . . Derelict Logs Recovered . | . . . . . . . Drone Launches . | . . . . . . . Drone Recoveries . | . . . . . . . Exploration | -11 -10 -10 -9 -8 -7 -7 ------------- Run | Yrd Mat Min Mat Mat Fac Gar Turns Passed 4190 | . 553 39 1514 853 229 1002 Spaces Moved 1853 | 1 269 32 856 439 42 214 Core 223 | . . . . . 9 214 Treads . | . . . . . . . Legs 494 | 1 248 32 125 65 23 . Wheels 1115 | . . . 731 374 10 . Hover 21 | . 21 . . . . . Flight . | . . . . . . . Fastest Speed 50 | 120 120 120 90 105 135 50 Average Speed 163 | 120 141 120 117 126 280 438 Slowest Speed 600 | 120 260 120 190 330 600 600 Overloaded Moves . | . . . . . . . Propulsion Burnouts . | . . . . . . . Robots Hopped . | . . . . . . . Cave-ins Triggered . | . . . . . . . Exploration Rate (%) 25 | 2 27 14 66 35 1 34 Regions Visited 6 Branch Regions 1 Pre-discovered Areas . | . . . . . . . Known Exits Taken 1 | . . . . . 1 . Unknown Exits Taken 5 | 1 1 1 1 1 . . Scrap Searched . | . . . . . . . Spaces Dug . | . . . . . . . Terrain Destroyed 37 | . . . 31 5 . 1 Melee . | . . . . . . . Projectile 2 | . . . 1 . . 1 AOE 35 | . . . 30 5 . . Terrain Rammed . | . . . . . . . Walls Destroyed . | . . . . . . . Machines Disabled . | . . . . . . . Actions | -11 -10 -10 -9 -8 -7 -7 --------- Run | Yrd Mat Min Mat Mat Fac Gar Total 2533 | . 362 33 1218 578 93 249 Wait 225 | . . . 205 7 12 1 Move 1848 | . 268 31 855 438 42 214 Hop . | . . . . . . . Pick Up 45 | . 13 1 15 12 1 3 Fast Attach 39 | . 10 . 15 9 4 1 Attach 13 | . . . 2 5 3 3 Detach 11 | . 1 . 1 2 3 4 Swap 33 | . 5 . 9 17 2 . Drop 65 | . 20 1 27 14 . 3 Fire 251 | . 44 . 89 74 24 20 Melee . | . . . . . . . Ram . | . . . . . . . Kick 3 | . 1 . . . 2 . Crush . | . . . . . . . Escape Stasis . | . . . . . . . Rewire . | . . . . . . . Trap . | . . . . . . . Miscellaneous . | . . . . . . . Route ------- -11/Scrapyard -10/Materials -10/Mines -9/Materials (discovered 2 exits: *Mat / [*Min]) -8/Materials -7/Factory -7/Garrison (discovered 1 exit: [*Fac]) History --------- Turn | Location | Event 1 | -11/Scrapyard | Discovered new exit (range 0) 1 | -11/Scrapyard | Entered Materials 332 | -10/Materials | Build established: Mutant 388 | -10/Materials | Core integrity fell below 50% 413 | -10/Materials | Discovered new exit (range 12) 420 | -10/Materials | Lost 3 parts (2p1n) 554 | -10/Materials | Entered Mines 571 | -10/Mines | Received a Rocket Launcher from a helpful Derelict 571 | -10/Mines | Discovered new exit (range 12) 593 | -10/Mines | Entered Materials 593 | -9/Materials | Evolved 2 slots: Utility x1, Weapon x1 1021 | -9/Materials | Build established: Tank 1525 | -9/Materials | Discovered new exit (range 9) 1934 | -9/Materials | Discovered new exit (range 14) 2107 | -9/Materials | Entered another Materials area 2107 | -8/Materials | Evolved 2 slots: Utility x2 2294 | -8/Materials | Destroyed 7 combat bots 2414 | -8/Materials | Build established: Skirmisher 2534 | -8/Materials | Repaired Corrupted Hacking Suite 2577 | -8/Materials | Discovered new exit (range 15) 2907 | -8/Materials | First assault squad dispatched 2960 | -8/Materials | Entered Factory 2960 | -7/Factory | Evolved 2 slots: Propulsion x1, Utility x1 3004 | -7/Factory | Garrison activated, responded to threat 3038 | -7/Factory | Lost 3 parts (3u) 3156 | -7/Factory | Lost 6 parts (4n1u1w) 3189 | -7/Factory | Identified exit to Garrison 3189 | -7/Factory | Entered Garrison 3399 | -7/Garrison | Build established: Mutant 3412 | -7/Garrison | Triggered checkpoint 3440 | -7/Garrison | Core integrity fell below 50% 3664 | -7/Garrison | Triggered checkpoint 3743 | -7/Garrison | Garrison Relay disabled 3795 | -7/Garrison | Build established: Gunner 3860 | -7/Garrison | Discovered new exit (range 13) 4140 | -7/Garrison | Triggered checkpoint 4176 | -7/Garrison | Core integrity fell below 20% 4191 | -7/Garrison | Destroyed by S-27 Virus with Autogun Last Messages --------------- 03860_ EXIT=FOUND 04140_ Beams of light sweep through the air. An alarm sounds. 04140_ S-27 Virus destroyed. 04140_ Switching to secondary target: S-27 Virus. 04140_ Slug penetrates Reinforced Barrier. 04140_ Hpw. Shotgun destroyed. 04146_ S-27 Virus destroyed. 04146_ Switching to secondary target: S-27 Virus. 04149_ Slug penetrates S-27 Virus. 04149_ S-27 Virus destroyed. 04152_ Slug penetrates Reinforced Barrier. 04167_ Hpw. Shotgun destroyed. 04169_ Slug penetrates Wall. 04171_ Slug penetrates S-27 Virus. 04171_ S-27 Virus destroyed. Garrison Door activated. 04177_ Destroyed VTOL Module. 04179_ Dropped Lrg. Storage Unit. 04179_ Critical hit (Destroy). 04179_ Gauss Rifle destroyed. Map ----- +----------------------------------------------------+ | ???#"! #?????# #????????###### ######?? | | ???#"! ####### ########## ### | | ???#"! | | ???#"" ! ? | | ???#"""!!!!!!"################### %[## #? #?? | | ???#""""""""""#???????????????###[* ## ## ### | | ???############???????????????# % ? | | ??????????????????????????????# ?? | | ??????????????????????????????# "?? | | ??????????????????????????????# "?? | | ??????????????????????????????### ##! ## #?? | | ??????????????????????########### ##[[ ## ### | | ??????????????????????# !!![[ ^^ * | | ??????????????????????# !!! ^^ | | ??????????????????????# ===^^ ### | | ??????????????????????# s############*=%[######?? | | ??????????????????????# #??????????#%%*%#??????? | | ??????????????######??# s#??????????#"####??????? | | ??????????????#"#^^#??# s#?????????? #?????????? | | ??????????????#[ ^^#??# #??????????###?????????? | | ??????????????#" #??# #??????????????????????? | | ??????????????#" #??# #??????????????????????? | | ??????????????#"# #??# #??????????????????????? | | ??????????????### #??# #??????????????????????? | | ????????????????# #??# #??????????????????????? | | ????????????????# #??# @#??????????????????????? | | ??????????????### #??# #??????????????????????? | | ??????????????# #??# #??????????????????????? | | ??????????????# #??# #??????????????????????? | | ??????????????# #??# #??????????????????????? | | ??????????????### #??# #??????????????????????? | | ????????????????# #### #??????????????????????? | | ????????????????# #??????????????????????? | | ????????????????# #??????????????????????? | | ????????????????####### #??????????????????????? | | ??????????????????????# #??????????????????????? | | ??????????????????????# #??????????????????????? | | ??????????????????????# #??????????????????????? | | ??????????????????????# #??????????????????????? | | ??????????????????????# #??????????????????????? | | ??????????????????????# #??????????????????????? | | ??????????????????????# #??????????????????????? | | ??????????????????????# #??????????????????????? | | ??????????????????????# #??????????????????????? | | ??????????????????????# #??????????????????????? | | ??????????????????????# #??????????????????????? | | ????????????????????# #??????????????????????? | | ????????????????????# < #??????????????????????? | | ????????????????????# #??????????????????????? | | ????????????????????#######??????????????????????? | +----------------------------------------------------+ Best States ------------- Heat Dissipation 53 Energy Generation 14 Energy Capacity 280 Matter Stores 300 Matter Capacity 300 Sight Range 16 Terrain Scan Range 16 Terrain Scan Density 85 Base Temperature (-) 100 Armor Coverage 150 Utility Shielding 66 Evasion (%) 55 Targeting Accuracy 5 Recoil Reduction 4 Kinecelleration 30 Offensive Hacking 10 Item Schematics ----------------- Med. Matter Pod | -9/Materials | Extracted Mni. Grenade Launcher | -9/Materials | Extracted Particle Gun | -9/Materials | Extracted Cryofiber Web | -8/Materials | Scanalyzed Adv. Visual Processing Unit | -8/Materials | Extracted Imp. Targeting Computer | -8/Materials | Extracted Robot Schematics ------------------ None Fabricated ------------ Nothing Alien Tech Used ----------------- None Achievements -------------- None Challenges ------------ None Game ------ Seed BackupSigixFlamer Manual? 0 Play Time 00:20:23 Cumulative 622.4 hours Start 2024.01.26 @ 21:45:25 End 2024.01.26 @ 22:03:53 Sessions 1 Manual Loads 0 Difficulty Rogue Special Mode None Game No. 586 Rogue 313 Adventurer 123 Explorer 150 Win Type - Total 25 Types 19/0/4/1/0/0/0/1/0 Lore% 80 Gallery% 91 Achievement% 76 Wizard Run 0 Options --------- ASCII 0 Keyboard 1 Movement Numpad Keybinds 0 Fullscreen 2 Font 18/X11Bold Map View 76x50 Zoom Use 0% Tactical HUD 1 Map Filters NONE Filters NONE Steam 1 RUN: 81d1b73b-0ff9-485f-8fa1-bf4f76d3e569